bitfinex/quotes_SOLUSD_20240727
["timestamp","ask_amount","ask_price","bid_price","bid_amount"]
[1722114026214,0.17,183.13,183.07,4.3698]
[1722114026415,16.39,183.12,183.05,4.3701]
[1722114026628,0.17,183.11,183.05,4.3701]
[1722114026929,0.17,183.11,182.73,19.16876737]
[1722114026930,0.34,183.11,182.91,1.09262619]
[1722114027133,0.34,183.11,183.03,4.3707]
[1722114027335,0.34,183.11,183.04,4.3706]
[1722114027526,1.13195702,183.11,183.04,4.3706]
[1722114028323,1.13195702,183.11,182.94,1.09266336]
[1722114029133,1.13195702,183.11,183.04,4.3705]
[1722114029436,1.13195702,183.11,182.94,1.09266336]
[1722114029733,16.39,183.06,182.9,1.09268307]
[1722114029939,16.39,182.97,182.81,1.09341294]
[1722114030173,16.39,182.96,182.9,4.3739]
[1722114030346,0.79195702,183.04,182.91,1.09327247]
[1722114030511,5.16255702,183.04,182.96,4.3724]
[1722114030714,45.17,183.03,182.83,1.09321264]
[1722114031019,0.34,183.03,182.83,1.09321264]
[1722114031320,0.17,183.03,182.83,1.09321264]
[1722114031536,5.33255702,183.04,182.96,4.3725]
[1722114031840,5.33255702,183.04,182.83,1.09321264]
[1722114031841,16.39,183.01,182.83,1.09321264]
[1722114032137,0.96195702,183.0,182.83,1.09321264]
[1722114032338,0.17,182.99,182.94,4.3729]
[1722114032530,0.17,183.0,182.94,4.3729]
[1722114032838,16.39,182.99,182.92,4.3734]
[1722114033037,0.17,182.98,182.92,4.3734]
[1722114033241,0.34,182.98,182.92,4.3734]
[1722114033417,0.34,182.98,182.83,1.09321264]
[1722114033738,1.13195702,182.98,182.82,1.09338201]
[1722114033953,20.7623,182.97,182.89,4.3742]
[1722114034153,0.96195702,182.96,182.89,4.3742]
[1722114034333,0.17,182.95,182.9,4.3739]
[1722114034532,0.17,182.96,182.79,4.3742]
[1722114034730,7.11755702,182.98,182.8,1.09348972]
[1722114034731,6.3256,182.98,182.8,1.09348972]
[1722114034935,6.3256,182.98,182.92,4.3733]
[1722114035252,6.3256,182.98,182.8,1.09348972]
[1722114035548,16.39,182.96,182.89,4.3741]
[1722114035748,0.79195702,182.95,182.89,4.3741]
[1722114035931,0.79195702,182.97,182.8,1.09348972]
[1722114036136,0.34,182.96,182.8,21.09348972]
[1722114036455,0.79195702,182.95,182.91,4.3737]
[1722114036754,0.34,182.96,182.92,4.3734]
[1722114037068,6.3256,183.11,182.94,1.09345435]
[1722114037229,6.3256,183.11,183.1,4.3691]
[1722114037425,21.5684,183.18,182.95,20.0]
[1722114037676,22.36035702,183.18,183.13,4.3683]
[1722114037830,22.36035702,183.18,182.96,46.43227945]
[1722114037831,0.79195702,183.17,182.97,20.0]
[1722114038036,0.79195702,183.17,182.93,0.7923532]
[1722114038037,16.39,183.15,182.98,1.09245503]
[1722114038231,5.16015702,183.14,183.04,4.3704]
[1722114038458,16.39,183.13,183.04,4.3704]
[1722114038631,33.20195702,183.14,182.99,1.09259106]
[1722114038948,32.41,183.14,182.99,1.09259106]
[1722114039130,6.3256,183.18,183.0,1.09232313]
[1722114039531,11.48485702,183.18,183.1,4.3691]
[1722114039740,0.79195702,183.17,183.0,1.09232313]
[1722114039929,20.7588,183.12,183.02,4.3709]
[1722114040134,16.39,183.11,183.02,4.3708]
[1722114040350,16.39,183.11,182.96,1.0926483]
[1722114040351,0.79195702,183.1,183.03,4.3707]
[1722114040551,21.55115702,183.1,182.96,1.0926483]
[1722114040755,0.17,183.09,182.96,1.0926483]
[1722114040928,16.39,183.1,182.96,1.0926483]
[1722114041124,0.79195702,183.09,182.94,1.09264764]
[1722114041329,16.56,183.08,183.01,4.3712]
[1722114041528,17.52195702,183.08,182.93,1.88513964]
[1722114041744,16.73,183.08,183.01,4.3712]
[1722114042154,16.73,183.08,182.93,1.88513964]
[1722114042344,16.73,183.08,183.01,4.3712]
[1722114042532,0.79195702,183.07,182.93,0.7923532]
[1722114042732,16.56,183.06,182.93,0.7923532]
[1722114043057,0.96195702,183.05,182.98,4.3718]
[1722114043242,0.17,183.04,182.93,0.7923532]
[1722114043555,0.17,183.05,182.99,4.3717]
[1722114043740,0.17,183.05,182.93,0.7923532]
[1722114043741,16.39,183.03,182.93,0.7923532]
[1722114043947,0.17,183.04,182.97,4.3722]
[1722114044153,0.17,183.04,182.93,0.7923532]
[1722114044454,0.34,183.04,182.97,4.372]
[1722114044861,16.39,183.03,182.97,4.372]
[1722114045032,16.39,183.01,182.94,4.3729]
[1722114045239,0.34,183.0,182.93,0.7923532]
[1722114045451,17.18195702,182.99,182.93,0.7923532]
[1722114045658,0.17,182.98,182.93,0.7923532]
[1722114045845,0.34,182.98,182.93,0.7923532]
[1722114046051,0.17,182.98,182.93,0.7923532]
[1722114046254,0.34,182.98,182.93,0.7923532]
[1722114046558,1.13195702,182.98,182.93,0.7923532]
[1722114046759,20.7623,182.97,182.93,0.7923532]
[1722114046957,65.34,182.98,182.93,0.7923532]
[1722114046958,16.73,182.96,182.93,0.7923532]
[1722114047860,16.39,182.99,182.93,0.7923532]
[1722114048046,0.34,182.98,182.93,0.7923532]
[1722114048763,16.39,182.97,182.93,0.7923532]
[1722114048977,0.34,182.96,182.93,0.7923532]
[1722114049758,4.7126,182.96,182.93,0.7923532]
[1722114049953,21.1026,182.96,182.93,0.7923532]
[1722114050153,21.1026,182.96,182.86,4.3747]
[1722114050154,20.763,182.94,182.86,4.3747]
[1722114050373,4.5432,182.93,182.76,6.4612]
[1722114050670,4.5432,182.93,182.74,0.7923532]
[1722114050671,16.39,182.9,182.81,4.3759]
[1722114050975,16.39,182.88,182.81,4.3759]
[1722114051171,0.17,182.89,182.74,0.7923532]
[1722114051379,20.7647,182.87,182.79,4.3764]
[1722114051553,20.7647,182.87,182.74,0.7923532]
[1722114051554,0.17,182.86,182.8,4.3763]
[1722114051754,6.5424,182.88,182.74,0.7923532]
[1722114051953,0.17,182.89,182.74,0.7923532]
[1722114052278,16.39,182.88,182.8,4.3761]
[1722114052572,16.39,182.86,182.79,4.3765]
[1722114052778,4.3743,182.89,182.74,0.7923532]
[1722114052952,4.7145,182.88,182.74,0.7923532]
[1722114053151,20.7647,182.87,182.74,0.7923532]
[1722114053474,18.00456109,182.93,182.74,0.7923532]
[1722114053475,32.41,182.85,182.79,4.3764]
[1722114053660,0.34,182.86,182.74,0.7923532]
[1722114053661,0.17,182.86,182.74,0.7923532]
[1722114053863,0.17,182.84,182.74,0.7923532]
[1722114054172,4.5449,182.86,182.76,4.3771]
[1722114054173,4.5451,182.86,182.76,4.3771]
[1722114054352,61.56,182.85,182.76,4.3771]
[1722114054553,16.39,182.82,182.74,0.7923532]
[1722114054765,0.17,182.81,182.75,4.3775]
[1722114054980,0.34,182.81,182.75,4.3775]
[1722114055147,4.3752,182.85,182.77,4.3768]
[1722114055470,4.3752,182.85,182.74,0.7923532]
[1722114055471,32.41,182.85,182.74,0.7923532]
[1722114055776,0.34,182.86,182.74,0.7923532]
[1722114055966,24.3744,182.88,182.74,0.7923532]
[1722114055967,0.34,182.85,182.74,0.7923532]
[1722114056163,32.41,182.85,182.77,4.3769]
[1722114056364,16.73,182.84,182.75,4.3773]
[1722114056549,16.73,182.84,182.76,4.3772]
[1722114056754,4.3758,182.83,182.74,0.7923532]
[1722114056979,16.73,182.82,182.74,0.7923532]
[1722114057283,21.1059,182.82,182.74,5.1700532]
[1722114057462,48.8,182.8,182.74,0.7923532]
[1722114057649,16.39,182.77,182.74,0.7923532]
[1722114057856,0.34,182.76,182.74,0.7923532]
[1722114058180,0.34,182.76,182.56,2.99966601]
[1722114058358,32.41,182.75,182.56,0.7923532]
[1722114058568,32.41,182.75,182.64,10.9503]
[1722114058569,65.17,182.74,182.64,10.9503]
[1722114058762,0.17,182.73,182.56,0.7923532]
[1722114059069,0.17,182.73,182.59,10.9531]
[1722114059070,32.41,182.69,182.59,10.9531]
[1722114059259,0.17,182.68,182.59,10.9531]
[1722114059458,0.34,182.68,182.59,4.3811]
[1722114059677,45.34,182.68,182.56,0.7923532]
[1722114059876,49.7192,182.68,182.56,0.7923532]
[1722114060194,0.34,182.68,182.61,4.3808]
[1722114060383,0.34,182.68,182.56,0.7923532]
[1722114060563,32.41,182.69,182.63,4.3803]
[1722114060756,20.34,182.68,182.56,0.7923532]
[1722114060956,65.34,182.68,182.59,4.3811]
[1722114061173,65.34,182.68,182.6,4.381]
[1722114061481,36.7902,182.64,182.56,0.7923532]
[1722114061683,4.3805,182.63,182.56,0.7923532]
[1722114061855,6.0576,182.67,182.56,0.7923532]
[1722114062061,52.58,182.66,182.56,0.7923532]
[1722114062271,0.17,182.65,182.56,0.7923532]
[1722114062663,32.41,182.6,182.56,0.7923532]
[1722114062983,0.34,182.59,182.56,0.7923532]
[1722114063170,20.0,182.66,182.56,0.7923532]
[1722114063482,6.0576,182.67,182.56,0.7923532]
[1722114063798,4.3797,182.66,182.58,4.3815]
[1722114064085,32.41,182.65,182.56,0.7923532]
[1722114064280,4.3812,182.6,182.56,0.7923532]
[1722114064590,4.381,182.61,182.56,0.7923532]
[1722114064761,36.39,182.64,182.56,0.7923532]
[1722114064964,49.7205,182.63,182.56,0.7923532]
[1722114065167,20.0,182.62,182.56,0.7923532]
[1722114065358,0.34,182.61,182.57,4.3818]
[1722114065556,0.17,182.61,182.56,0.7923532]
[1722114065863,45.34,182.61,182.56,0.7923532]
[1722114066181,32.41,182.65,182.59,4.3812]
[1722114066389,32.41,182.65,182.56,0.7923532]
[1722114066758,4.3805,182.63,182.56,0.7923532]
[1722114066958,4.3807,182.62,182.56,0.7923532]
[1722114067173,15.1072,182.64,182.37,11.7488532]
[1722114067384,16.39,182.57,182.37,0.7923532]
[1722114067730,16.39,182.57,182.48,4.3839]
[1722114067866,65.34,182.56,182.47,10.9604]
[1722114068063,65.34,182.56,182.49,4.3837]
[1722114068365,36.73,182.56,182.51,4.3833]
[1722114069172,20.34,182.56,182.48,4.3838]
[1722114069372,45.0,182.55,182.49,4.3837]
[1722114069568,0.34,182.56,182.46,10.9611]
[1722114069569,20.0,182.54,182.5,4.3834]
[1722114069863,0.34,182.53,182.49,10.9593]
[1722114070063,0.34,182.53,182.37,0.7923532]
[1722114070465,0.17,182.52,182.49,4.3836]
[1722114070660,0.17,182.52,182.48,10.9599]
[1722114070860,0.17,182.53,182.51,4.383]
[1722114071185,32.41,182.58,182.37,0.7923532]
[1722114071390,45.17,182.57,182.37,0.7923532]
[1722114071599,4.3822,182.56,182.48,4.384]
[1722114071776,45.17,182.55,182.48,4.384]
[1722114072097,45.17,182.55,182.47,10.9603]
[1722114072478,0.17,182.55,182.47,10.9603]
[1722114072675,48.8,182.52,182.37,0.7923532]
[1722114072897,4.3842,182.48,182.37,0.7923532]
[1722114073080,20.17,182.51,182.37,0.7923532]
[1722114073277,20.0,182.51,182.37,0.7923532]
[1722114073484,20.0,182.53,182.46,10.9609]
[1722114073800,45.0,182.52,182.37,0.7923532]
[1722114074109,20.0,182.53,182.48,4.384]
[1722114074416,6.2843,182.54,182.51,4.3832]
[1722114074575,6.468,182.6,182.53,4.3828]
[1722114074782,6.468,182.6,182.54,4.3825]
[1722114074979,6.468,182.6,182.52,15.3402]
[1722114075285,4.3824,182.55,182.38,20.0]
[1722114075485,4.3824,182.55,182.45,4.3846]
[1722114075486,4.3826,182.55,182.45,4.3846]
[1722114075689,48.8,182.58,182.4,10.9646]
[1722114075690,16.2867,182.51,182.4,10.9646]
[1722114075882,32.41,182.58,182.44,10.9624]
[1722114076110,32.41,182.58,182.46,4.3843]
[1722114076282,32.41,182.58,182.44,10.9624]
[1722114076283,4.3824,182.55,182.44,10.9624]
[1722114076600,61.73,182.54,182.44,10.9624]
[1722114076914,48.8,182.51,182.39,10.965]
[1722114077109,26.86,182.46,182.4,4.3859]
[1722114077408,65.34,182.45,182.4,4.3858]
[1722114077608,65.34,182.45,182.39,10.965]
[1722114078104,65.34,182.45,182.39,15.3511]
[1722114078315,20.34,182.45,182.39,10.965]
[1722114078496,20.17,182.45,182.39,10.965]
[1722114078807,20.17,182.45,182.37,0.7923532]
[1722114078808,26.86,182.51,182.42,10.9632]
[1722114078978,45.0,182.5,182.37,0.7923532]
[1722114079184,4.3826,182.54,182.46,4.3844]
[1722114079382,17.23978434,182.6,182.37,0.7923532]
[1722114079383,6.468,182.6,182.38,41.4009]
[1722114079696,22.858,182.6,182.39,47.08863874]
[1722114079888,32.81,182.65,182.59,4.3813]
[1722114080091,6.468,182.66,182.63,4.3803]
[1722114080312,32.81,182.71,182.66,4.3796]
[1722114080519,32.81,182.71,182.44,16.39]
[1722114080695,16.39,182.7,182.65,4.3799]
[1722114080882,0.94867708,182.79,182.55,21.4009]
[1722114081086,6.468,182.82,182.55,21.4009]
[1722114081087,32.81,182.81,182.56,83.4770104]
[1722114081288,32.81,182.81,182.57,1.74691471]
[1722114081591,16.39,182.8,182.57,1.74691471]
[1722114081790,16.39,182.8,182.72,10.9456]
[1722114082388,16.39,182.8,182.75,4.3775]
[1722114082580,16.39,182.8,182.72,10.9456]
[1722114082780,16.39,182.8,182.74,4.3777]
[1722114082984,16.39,182.8,182.76,4.3771]
[1722114083186,6.468,182.82,182.75,10.9434]
[1722114083404,22.858,182.82,182.75,10.9434]
[1722114083800,22.858,182.82,182.57,1.74691471]
[1722114083999,16.39,182.8,182.68,4.379]
[1722114084303,21.8724,182.88,182.57,1.74691471]
[1722114084304,2.22631304,182.89,182.73,15.0735]
[1722114084525,32.81,182.97,182.74,20.0]
[1722114084696,2.98172761,183.02,182.75,1.74519409]
[1722114085011,4.3743,182.89,182.78,15.3183]
[1722114085307,22.7547,182.91,182.78,10.9417]
[1722114085492,6.468,182.91,182.66,6.3274]
[1722114085693,6.468,182.91,182.83,4.3755]
[1722114085896,6.468,182.91,182.84,4.3752]
[1722114086306,32.81,182.93,182.86,4.3748]
[1722114086506,32.81,182.93,182.88,4.3743]
[1722114086706,32.81,182.93,182.67,58.47595839]
[1722114086909,32.81,182.93,182.68,1.74586282]
[1722114087118,32.81,182.93,182.86,4.3747]
[1722114087413,6.468,182.98,182.69,20.34]
[1722114087640,4.3735,182.92,182.82,4.3757]
[1722114087914,4.3735,182.92,182.71,20.0]
[1722114087915,4.3739,182.91,182.71,20.0]
[1722114088092,4.3741,182.9,182.7,1.7456717]
[1722114088295,32.81,182.92,182.7,1.7456717]
[1722114088296,4.3742,182.89,182.8,4.3763]
[1722114088608,4.3739,182.91,182.8,4.3763]
[1722114088803,32.81,182.87,182.78,4.3767]
[1722114089106,32.81,182.87,182.76,4.3772]
[1722114089107,4.3752,182.85,182.76,4.3772]
[1722114089321,45.17,182.84,182.76,4.3772]
[1722114089615,20.0,182.83,182.66,6.3274]
[1722114089818,0.17,182.85,182.66,8.07345398]
[1722114089990,0.17,182.85,182.66,6.3274]
[1722114090200,2.13319295,182.93,182.66,8.07345398]
[1722114090425,6.468,182.98,182.84,4.3752]
[1722114090426,4.373,182.94,182.84,4.3752]
[1722114090612,37.1826,182.96,182.67,1.74595839]
[1722114090812,37.1826,182.96,182.68,36.39]
[1722114090813,32.81,182.96,182.68,36.39]
[1722114090996,32.81,182.96,182.9,4.3737]
[1722114091197,4.3729,182.95,182.85,4.375]
[1722114091521,32.81,182.96,182.7,20.0]
[1722114091689,6.468,182.98,182.76,15.4658]
[1722114091894,6.468,182.98,182.77,67.08500311]
[1722114092093,6.468,182.98,182.95,4.3726]
[1722114092323,6.468,182.98,182.79,20.0]
[1722114092520,6.468,182.98,182.8,45.0]
[1722114092814,6.468,182.98,182.83,4.3755]
[1722114092815,32.81,182.95,182.83,4.3755]
[1722114093020,32.81,182.95,182.68,15.4658]
[1722114093021,4.3733,182.93,182.68,15.4658]
[1722114093192,4.3735,182.92,182.69,1.74576725]
[1722114093395,20.0,182.94,182.87,4.3746]
[1722114093594,20.0,182.94,182.69,1.74576725]
[1722114093806,0.34,182.93,182.69,1.74576725]
[1722114094025,4.3736,182.92,182.69,1.74576725]
[1722114094317,45.17,182.91,182.83,4.3755]
[1722114094523,49.7137,182.91,182.81,4.376]
[1722114094709,20.0,182.9,182.69,1.74576725]
[1722114094908,0.34,182.89,182.69,1.74576725]
[1722114095316,78.15,182.89,182.8,4.3762]
[1722114095615,20.0,182.88,182.79,4.3765]
[1722114095802,4.3752,182.85,182.68,15.4658]
[1722114095997,37.1857,182.83,182.75,4.3775]
[1722114096202,20.17,182.82,182.6,22.9401]
[1722114096423,0.17,182.81,182.75,4.3774]
[1722114096794,0.17,182.81,182.73,4.3778]
[1722114097013,0.17,182.81,182.61,17.21233206]
[1722114097422,0.17,182.81,182.74,4.3777]
[1722114097815,0.17,182.81,182.75,4.3774]
[1722114098324,0.17,182.81,182.62,20.0]
[1722114098520,0.17,182.81,182.61,21.74653206]
[1722114098699,0.17,182.81,182.75,4.3773]
[1722114099101,0.17,182.81,182.62,20.0]
[1722114099405,0.17,182.81,182.63,0.34]
[1722114099606,20.0,182.82,182.63,2.08634079]
[1722114099820,6.6189,182.84,182.64,1.74624518]
[1722114100011,6.6189,182.91,182.65,0.34]
[1722114100220,6.6189,182.91,182.88,4.3743]
[1722114100522,6.6189,182.91,182.67,20.0]
[1722114100704,6.6189,182.91,182.68,47.08586282]
[1722114100895,6.6189,182.91,182.69,1.74576725]
[1722114101101,6.6189,182.91,182.88,4.3743]
[1722114101317,6.6189,182.91,182.89,4.3741]
[1722114101498,6.6189,182.91,182.7,20.34]
[1722114101696,6.6189,182.91,182.71,46.74557615]
[1722114101901,6.6189,182.98,182.76,16.3515]
[1722114102101,6.6189,182.98,182.77,67.08500311]
[1722114102333,6.6189,182.98,182.78,1.74490764]
[1722114102624,0.7923532,183.02,182.9,4.3738]
[1722114102826,32.81,183.01,182.79,20.17]
[1722114103005,32.81,183.01,182.8,45.17]
[1722114103203,32.81,183.01,182.81,1.9146213]
[1722114103401,0.7923532,183.02,182.93,4.3731]
[1722114103622,0.7923532,183.02,182.82,0.17]
[1722114103810,0.7923532,183.02,182.82,45.17]
[1722114104021,4.3714,183.01,182.92,4.3733]
[1722114104199,0.7923532,183.02,182.93,4.3732]
[1722114104398,32.81,183.01,182.83,20.0]
[1722114104623,16.39,182.99,182.91,4.3736]
[1722114104934,65.34,182.98,182.89,4.374]
[1722114105252,20.34,182.98,182.77,20.0]
[1722114105426,0.34,182.98,182.77,20.0]
[1722114105734,0.17,182.99,182.77,20.0]
[1722114105911,45.34,182.99,182.92,3.8733]
[1722114106111,45.34,182.99,182.77,20.0]
[1722114106112,20.0,182.98,182.93,4.3732]
[1722114106314,0.17,182.97,182.93,4.3732]
[1722114106510,0.34,182.97,182.91,4.3735]
[1722114106715,0.34,182.97,182.89,4.374]
[1722114106916,0.34,182.97,182.91,4.3736]
[1722114107125,20.7631,182.94,182.68,16.3515]
[1722114107330,32.81,182.95,182.87,4.3745]
[1722114107517,0.34,182.97,182.75,16.39]
[1722114107518,20.0,182.94,182.75,16.39]
[1722114107830,0.34,182.97,182.76,18.13509859]
[1722114108030,20.0,183.0,182.78,16.39]
[1722114108247,20.0,183.0,182.94,4.3729]
[1722114108545,20.0,183.0,182.79,20.0]
[1722114108546,20.7628,182.95,182.79,20.0]
[1722114108711,20.0,182.94,182.77,1.74500311]
[1722114109333,16.39,183.0,182.94,4.3729]
[1722114109722,0.34,182.99,182.94,4.3729]
[1722114110034,0.34,182.99,182.92,4.3732]
[1722114110625,0.34,182.99,182.78,36.39]
[1722114110931,20.0,183.0,182.93,4.3731]
[1722114111310,20.0,183.01,182.93,4.3731]
[1722114111821,20.0,183.01,182.94,4.3729]
[1722114112034,20.0,183.01,182.96,4.3723]
[1722114112935,0.7923532,183.02,182.99,4.3717]
[1722114113111,0.7923532,183.02,182.82,31.5573]
[1722114113311,0.7923532,183.02,183.0,4.3714]
[1722114113548,0.7923532,183.02,182.98,4.3718]
[1722114113745,0.7923532,183.02,182.99,4.3718]
[1722114113910,0.7923532,183.02,182.98,4.3719]
[1722114114118,0.7923532,183.02,182.83,67.08443045]
[1722114114119,0.7923532,183.02,183.01,4.3713]
[1722114114331,0.7923532,183.02,182.83,83.47443045]
[1722114114635,0.7923532,183.02,183.0,4.3715]
[1722114114836,0.7923532,183.02,182.85,36.39]
[1722114115145,0.7923532,183.02,182.86,47.08414426]
[1722114115439,0.7923532,183.02,182.95,4.3725]
[1722114115640,0.7923532,183.02,182.86,46.74414426]
[1722114115641,0.7923532,183.02,182.86,1.74414426]
[1722114115828,0.7923532,183.02,182.8,15.0155]
[1722114115829,20.7621,182.98,182.8,15.0155]
[1722114116131,20.0,182.97,182.75,32.7044]
[1722114116341,0.17,182.96,182.76,18.05949859]
[1722114116528,0.17,182.96,182.9,4.3737]
[1722114116839,20.0,182.97,182.95,4.3727]
[1722114117042,17.1823532,183.02,182.95,4.3727]
[1722114117043,20.0,183.01,182.95,4.3727]
[1722114117221,0.34,183.0,182.79,16.39]
[1722114117423,0.34,183.0,182.78,20.0]
[1722114117424,17.1823532,183.02,182.8,83.47471673]
[1722114117716,17.1823532,183.02,182.81,21.7446213]
[1722114117914,0.34,183.01,182.82,45.34]
[1722114118115,0.17,183.01,182.83,20.0]
[1722114118315,0.7923532,183.02,182.99,4.3718]
[1722114118536,0.7923532,183.02,183.0,4.3715]
[1722114118740,0.7923532,183.02,182.85,20.0]
[1722114118942,16.39,183.0,182.85,20.0]
[1722114119123,5.1636532,183.02,182.84,1.74433504]
[1722114119325,5.1634532,183.02,182.84,1.74433504]
[1722114119645,20.34,183.01,182.84,1.74433504]
[1722114119847,20.0,183.0,182.93,4.373]
[1722114120142,4.5418,182.99,182.9,4.3737]
[1722114120320,0.17,182.98,182.9,4.3737]
[1722114120640,0.7923532,183.02,183.01,4.3713]
[1722114121728,17.1823532,183.02,182.94,4.3727]
[1722114121932,20.7618,182.99,182.91,4.3735]
[1722114122118,20.0,182.98,182.91,4.3735]
[1722114122642,20.0,182.98,182.76,16.3144]
[1722114122643,36.39,182.98,182.76,16.3144]
[1722114122853,0.34,182.97,182.77,1.74500311]
[1722114123036,32.81,183.03,182.77,1.74500311]
[1722114123037,0.94703503,183.19,182.96,21.2758]
[1722114123342,6.0052,183.25,182.96,21.2758]
[1722114123343,32.81,183.24,183.16,10.9194]
[1722114123540,6.0052,183.25,183.18,4.3672]
[1722114124149,6.0052,183.25,183.16,10.9194]
[1722114124440,6.0052,183.25,183.18,4.367]
[1722114125147,15.7835,183.28,183.18,4.367]
[1722114125351,6.0052,183.31,183.19,45.0]
[1722114126017,6.0052,183.31,183.18,4.367]
[1722114126443,6.0052,183.31,183.19,45.0]
[1722114127542,6.0052,183.31,183.18,4.367]
[1722114127725,20.0,183.3,183.18,4.367]
[1722114128340,16.39,183.28,183.18,4.367]
[1722114128639,20.0,183.27,183.18,4.367]
[1722114128833,36.39,183.3,183.18,4.367]
[1722114129026,20.0,183.3,183.18,4.367]
[1722114129228,0.2923532,183.2,183.18,4.367]
[1722114130942,4.1577532,183.26,183.18,4.367]
[1722114131138,6.0052,183.31,183.07,16.39]
[1722114131447,6.0052,183.31,183.29,4.3645]
[1722114131652,6.0052,183.31,183.11,16.39]
[1722114131834,6.0052,183.31,183.29,10.9114]
[1722114132145,15.7835,183.37,183.3,4.3644]
[1722114132336,15.7835,183.37,183.29,10.9114]
[1722114132539,15.7835,183.37,183.31,4.3641]
[1722114132843,15.7835,183.37,183.32,4.3639]
[1722114133233,15.7835,183.37,183.29,10.9114]
[1722114133630,36.5362,183.37,183.29,15.2759]
[1722114133925,36.5362,183.37,183.12,18.13166786]
[1722114133926,15.7835,183.37,183.12,18.13166786]
[1722114134256,15.7835,183.37,183.14,16.39]
[1722114134552,15.7835,183.37,183.34,4.3634]
[1722114134732,6.4646,183.38,183.17,6.2804]
[1722114134938,6.4646,183.38,183.36,4.3628]
[1722114135440,6.4646,183.38,183.19,20.0]
[1722114135751,6.4646,183.38,183.18,1.74109739]
[1722114135752,6.4646,183.38,183.36,4.3629]
[1722114135945,0.7923532,183.39,183.37,4.3626]
[1722114136151,0.7923532,183.39,183.21,20.0]
[1722114136329,0.7923532,183.39,183.16,36.0664]
[1722114136330,0.7923532,183.39,183.31,4.364]
[1722114137044,0.7923532,183.39,183.16,16.0664]
[1722114137249,0.7923532,183.39,183.16,17.8076875]
[1722114137435,0.34,183.38,183.17,1.74119244]
[1722114137760,20.34,183.38,183.17,1.74119244]
[1722114137935,20.0,183.38,183.3,4.3642]
[1722114138248,0.7923532,183.39,183.17,1.74119244]
[1722114138746,0.7923532,183.39,183.17,46.74119244]
[1722114138943,0.7923532,183.39,183.37,4.3627]
[1722114139449,0.7923532,183.39,183.2,36.39]
[1722114139650,0.7923532,183.39,183.21,47.08081229]
[1722114139837,0.7923532,183.39,183.37,4.3626]
[1722114140941,0.7923532,183.39,183.35,4.3631]
[1722114141139,0.7923532,183.39,183.22,21.74071727]
[1722114141448,0.7923532,183.39,183.37,4.3626]
[1722114144136,0.7923532,183.39,183.24,20.0]
[1722114144341,0.7923532,183.39,183.37,4.3626]
[1722114145734,0.7923532,183.39,183.38,45.0]
[1722114147442,0.7923532,183.39,183.37,4.3626]
[1722114148040,0.7923532,183.39,183.35,4.3631]
[1722114148248,0.7923532,183.39,183.33,4.3635]
[1722114148443,0.7923532,183.39,183.25,1.7404323]
[1722114148859,0.7923532,183.39,183.35,4.363]
[1722114149065,0.7923532,183.39,183.25,1.7404323]
[1722114149264,0.7923532,183.39,183.36,4.3629]
[1722114149761,0.7923532,183.39,183.37,4.3627]
[1722114150446,0.7923532,183.39,183.38,45.0]
[1722114153653,5.32e-05,183.39,183.38,45.0]
[1722114153855,5.32e-05,183.39,183.37,4.3627]
[1722114154843,5.32e-05,183.39,183.36,4.3628]